bitfinex-derivatives/quotes_BTCF0:USTF0_20210111
["timestamp","ask_amount","ask_price","bid_price","bid_amount"]
[1610368912579,0.08544834,35021.0,35020.0,3.8055]
[1610368913581,0.00034834,35021.0,35020.0,3.8055]
[1610368915383,0.00034834,35021.0,34990.0,0.13632608]
[1610368915582,0.00034834,35021.0,34972.0,0.2874]
[1610368915782,0.2964,35021.0,34972.0,0.2874]
[1610368915982,0.00034844,35020.0,34991.0,0.00042595]
[1610368916184,0.00034844,35020.0,34973.0,0.03484663]
[1610368916584,0.00034844,35020.0,34973.0,0.00042599]
[1610368916783,0.00034844,35020.0,34974.0,0.00042599]
[1610368916983,0.00034844,35020.0,34974.0,0.09353599]
[1610368917183,0.00034844,35020.0,34982.0,0.13632608]
[1610368917384,0.00034844,35020.0,34982.0,0.21689608]
[1610368917783,0.2964,35021.0,34983.0,0.00042601]
[1610368919384,0.2964,35021.0,34992.0,0.13632608]
[1610368919585,0.2964,35021.0,34992.0,0.22166608]
[1610368920387,0.2964,35021.0,34992.0,0.08534]
[1610368921289,0.13632608,34993.0,34992.0,0.08534]
[1610368922788,0.13632608,34993.0,34985.0,4.2671]
[1610368923388,0.09436,34999.0,34985.0,4.2671]
[1610368923389,0.13632608,34986.0,34985.0,4.2671]
[1610368924789,0.13632608,34986.0,34974.0,0.09311]
[1610368924989,0.13632608,34986.0,34952.0,0.2943]
[1610368925391,0.08073,34992.0,34956.0,0.13632608]
[1610368925591,0.08073,34992.0,34956.0,0.22551608]
[1610368925792,0.08073,34992.0,34957.0,0.00042621]
[1610368926791,0.08073,34992.0,34956.0,0.08919]
[1610368927191,0.09436,34999.0,34957.0,0.00042624]
[1610368927392,2.67234081,35006.0,34987.0,0.13632608]
[1610368927593,2.67234081,35006.0,34987.0,0.22359608]
[1610368927791,0.2778,35006.0,34987.0,0.22359608]
[1610368928192,0.2778,35006.0,34987.0,0.08727]
[1610368929191,0.0857,35005.0,34987.0,0.08727]
[1610368929390,0.13632608,34988.0,34987.0,0.08727]
[1610368929991,0.22302608,34988.0,34987.0,0.08727]
[1610368930391,0.13632608,34988.0,34987.0,0.08727]
[1610368932697,0.13632608,34988.0,34956.0,0.08919]
[1610368932898,0.13632608,34988.0,34952.0,0.2943]
[1610368933299,0.2778,35006.0,34966.0,0.13632608]
[1610368933499,0.2778,35006.0,34966.0,0.20862608]
[1610368933699,0.2778,35006.0,34966.0,0.0723]
[1610368933899,0.2778,35006.0,34967.0,0.0004261]
[1610368934499,0.0859,35005.0,34967.0,0.0004261]
[1610368934700,0.0859,35005.0,34966.0,0.0723]
[1610368935299,0.13632608,34967.0,34966.0,0.0723]
[1610368937204,0.13632608,34967.0,34966.0,0.07272616]
[1610368938414,0.07992608,34967.0,34966.0,0.07272616]
[1610368939311,0.07992608,34967.0,34966.0,0.0723]
[1610368939509,0.07992608,34967.0,34955.0,4.4686]
[1610368940309,0.15602608,34967.0,34955.0,4.4686]
[1610368940510,0.0857,34966.0,34955.0,4.4686]
[1610368941310,0.13632608,34956.0,34955.0,4.4686]
[1610368941511,0.22068608,34956.0,34955.0,4.4686]
[1610368942411,0.30708608,34956.0,34955.0,4.4686]
[1610368942613,0.22068608,34956.0,34955.0,4.4686]
[1610368942811,0.22068608,34956.0,34941.0,3.9601]
[1610368943410,0.13632608,34942.0,34941.0,3.9601]
[1610368943614,4.81112608,34942.0,34909.0,4.761]
[1610368944014,4.81112608,34942.0,34910.0,0.03531765]
[1610368944215,4.81112608,34942.0,34910.0,0.12803765]
[1610368944413,4.81112608,34942.0,34910.0,0.0931421]
[1610368944613,4.81112608,34942.0,34911.0,0.0004221]
[1610368944813,4.81112608,34942.0,34911.0,0.03531627]
[1610368945214,4.81112608,34942.0,34911.0,0.0004221]
[1610368945414,4.6748,34942.0,34925.0,0.13632608]
[1610368945813,4.6748,34942.0,34925.0,0.06875]
[1610368946014,4.6748,34942.0,34926.0,0.0004221]
[1610368947315,0.13632608,34927.0,34925.0,0.06875]
[1610368948115,0.13632608,34927.0,34910.0,0.09272]
[1610368948315,3.6535,34926.0,34910.0,0.09272]
[1610368948514,3.6535,34926.0,34911.0,0.00042224]
[1610368949114,3.6535,34926.0,34910.0,0.09272]
[1610368949316,0.13632608,34911.0,34894.0,4.3856]
[1610368949915,0.13632608,34911.0,34895.0,0.0004223]
[1610368950115,0.13632608,34911.0,34895.0,0.0884123]
[1610368950614,0.13632608,34911.0,34896.0,0.0004223]
[1610368950815,3.6535,34926.0,34896.0,0.0004223]
[1610368951414,3.6535,34926.0,34925.0,0.13632608]
[1610368951615,3.6535,34926.0,34925.0,0.09282]
[1610368953018,0.2884,34942.0,34925.0,0.09282]
[1610368953417,0.13632608,34926.0,34925.0,0.09282]
[1610368953618,0.13632608,34926.0,34895.0,0.08799]
[1610368954018,0.13632608,34926.0,34896.0,0.00042222]
[1610368955419,0.13632608,34897.0,34896.0,0.00042222]
[1610368963630,0.13632608,34897.0,34895.0,0.08799]
[1610368963829,0.13632608,34897.0,34896.0,0.00041312]
[1610368964432,0.13632608,34897.0,34896.0,0.08744]
[1610368964632,0.13632608,34897.0,34896.0,0.08785312]
[1610368966232,0.13632608,34897.0,34896.0,0.08744]
[1610368968834,0.13632608,34897.0,34896.0,0.08785323]
[1610368969635,0.13632608,34897.0,34896.0,0.00041323]
[1610368970135,0.13632608,34897.0,34882.0,0.00041327]
[1610368971436,0.13632608,34883.0,34882.0,0.00041327]
[1610368975145,4.2888,34897.0,34882.0,0.00041327]
[1610368975545,4.2888,34897.0,34890.0,0.13632608]
[1610368975946,4.2888,34897.0,34891.0,0.00041322]
[1610368976961,4.2888,34897.0,34891.0,0.03533221]
[1610368977543,4.2888,34897.0,34896.0,0.13632608]
[1610368977944,4.2888,34897.0,34896.0,0.17165113]
[1610368978346,0.03,34917.0,34896.0,0.17165113]
[1610368978565,3.3815,34950.0,34896.0,4.52245113]
[1610368978754,0.5596,34949.0,34897.0,0.03531531]
[1610368979159,0.5596,34949.0,34897.0,0.10511579]
[1610368979347,0.2991,34949.0,34898.0,1.5]
[1610368979545,0.2991,34949.0,34948.0,0.13632608]
[1610368979546,0.0907,34949.0,34948.0,0.13632608]
[1610368979746,0.0042,34949.0,34948.0,0.24178608]
[1610368979946,0.07753,34974.0,34948.0,0.24178608]
[1610368980347,0.07753,34974.0,34949.0,0.00041266]
[1610368981547,0.07753,34974.0,34956.0,0.13632608]
[1610368981748,0.07753,34974.0,34949.0,0.00041266]
[1610368981948,0.07753,34974.0,34948.0,0.10546]
[1610368982147,0.07753,34974.0,34950.0,0.00041259]
[1610368982548,0.07753,34974.0,34949.0,0.00041259]
[1610368982749,0.07753,34974.0,34951.0,0.00041259]
[1610368982953,0.07753,34974.0,34950.0,0.00041259]
[1610368983349,0.07753,34974.0,34949.0,0.00041259]
[1610368983550,0.07753,34974.0,34965.0,0.13632608]
[1610368983749,3.2135,34987.0,34965.0,0.13632608]
[1610368984149,3.2135,34987.0,34966.0,0.00041251]
[1610368984349,3.2135,34987.0,34965.0,0.13632608]
[1610368984549,3.2135,34987.0,34966.0,0.0004125]
[1610368985349,3.2135,34987.0,34964.0,0.0818]
[1610368985550,0.13632608,34965.0,34964.0,0.0818]
[1610368985948,0.13632608,34965.0,34964.0,0.0785]
[1610368986150,0.13632608,34965.0,34948.0,0.10546]
[1610368986350,0.13632608,34965.0,34942.0,3.3117]
[1610368986952,0.13632608,34965.0,34943.0,0.00041273]
[1610368987151,0.13632608,34965.0,34943.0,0.08221273]
[1610368987353,0.22132608,34965.0,34943.0,0.08221273]
[1610368987552,0.13632608,34944.0,34943.0,0.0818]
[1610368987752,0.13632608,34944.0,34898.0,0.07256]
[1610368987951,0.13632608,34944.0,34859.0,1.5]
[1610368988154,0.13632608,34944.0,34899.0,0.0004129]
[1610368988351,0.13632608,34944.0,34899.0,0.0702429]
[1610368988552,0.13632608,34944.0,34899.0,0.06983]
[1610368988752,0.13632608,34944.0,34900.0,0.00041292]
[1610368988951,0.085,34943.0,34900.0,0.00041292]
[1610368989555,0.13632608,34901.0,34900.0,0.00041292]
[1610368991953,0.13632608,34901.0,34899.0,0.06983]
[1610368992153,0.13632608,34901.0,34900.0,0.00041315]
[1610368992755,0.13632608,34901.0,34899.0,0.06983]
[1610368993358,0.13632608,34901.0,34882.0,3.2351]
[1610368993555,0.13632608,34883.0,34882.0,3.2351]
[1610368993956,0.13632608,34883.0,34882.0,3.23551321]
[1610368994365,0.13632608,34883.0,34882.0,0.00041321]
[1610368994557,0.13632608,34883.0,34812.0,0.0855]
[1610368994756,0.13632608,34883.0,34785.0,4.70613455]
[1610368994757,0.13632608,34883.0,34806.0,0.0855]
[1610368995162,0.13632608,34883.0,34814.0,0.03536415]
[1610368995359,0.2859,34882.0,34814.0,0.12041415]
[1610368995557,0.13632608,34864.0,34844.0,0.13632608]
[1610368996159,0.13632608,34864.0,34845.0,0.00041357]
[1610368996360,0.13632608,34864.0,34845.0,0.09995]
[1610368996758,0.13632608,34864.0,34846.0,0.00041359]
[1610368997157,0.5478,34863.0,34846.0,0.00041359]
[1610368997558,0.13632608,34847.0,34846.0,0.00041359]
[1610368998560,0.5478,34863.0,34846.0,0.00041359]
[1610368998758,0.5478,34863.0,34845.0,0.09995]
[1610368998959,0.5478,34863.0,34847.0,0.00041133]
[1610368999358,0.5478,34863.0,34846.0,0.00041133]
[1610368999559,0.13632608,34847.0,34846.0,0.00041133]
[1610369000861,0.2736,34881.0,34846.0,0.00041133]
[1610369001664,0.2736,34881.0,34880.0,0.13632608]
[1610369001864,0.2736,34881.0,34880.0,0.23450608]
[1610369002266,0.2736,34881.0,34880.0,0.09818]
[1610369003669,0.40992608,34881.0,34880.0,0.09818]
[1610369006869,0.40992608,34881.0,34871.0,0.08232]
[1610369007671,0.13632608,34872.0,34871.0,0.08232]
[1610369011676,0.13632608,34872.0,34852.0,4.249]
[1610369013279,0.0864,34871.0,34852.0,4.249]
[1610369013480,0.0864,34871.0,34852.0,2.2488]
[1610369013679,1.13632608,34853.0,34790.0,0.13632608]
[1610369013881,1.13632608,34853.0,34791.0,0.2872]
[1610369014080,1.13632608,34853.0,34815.0,0.00041165]
[1610369014279,1.13632608,34853.0,34815.0,0.10782]
[1610369014878,0.0864,34852.0,34815.0,0.10782]
[1610369015679,0.13632608,34816.0,34815.0,0.10782]
[1610369015879,0.13632608,34816.0,34815.0,2e-05]
[1610369017080,0.13632608,34816.0,34743.0,0.1556]
[1610369017681,0.09122,34826.0,34768.0,0.13632608]
[1610369017882,0.09122,34826.0,34769.0,0.00040983]
[1610369019683,0.13632608,34774.0,34769.0,0.00040983]
[1610369020286,0.10462,34812.0,34769.0,0.00040983]
[1610369021688,0.10462,34812.0,34772.0,0.13632608]
[1610369022088,0.10462,34812.0,34773.0,0.00041009]
[1610369022289,0.09122,34826.0,34773.0,0.00041009]
[1610369022488,1.0,34832.0,34773.0,0.00041009]
[1610369023689,0.13632608,34774.0,34773.0,0.00041009]
[1610369024089,0.13632608,34774.0,34770.0,0.0004059]
[1610369024289,0.13632608,34774.0,34773.0,0.0004059]
[1610369024492,0.13632608,34774.0,34771.0,0.0004059]
[1610369024890,0.13632608,34774.0,34769.0,0.2877]
[1610369025091,0.13632608,34774.0,34772.0,0.00040591]
[1610369025290,0.13632608,34774.0,34770.0,0.00040591]
[1610369025493,0.13632608,34774.0,34769.0,0.2877]
[1610369025691,0.13632608,34770.0,34769.0,0.2877]
[1610369026493,0.13632608,34770.0,34769.0,0.28810593]
[1610369026894,0.07825,34812.0,34769.0,0.28810593]
[1610369027495,0.07825,34812.0,34770.0,0.00040593]
[1610369027696,0.07825,34812.0,34794.0,0.13632608]
[1610369027893,0.2784,34818.0,34794.0,0.21091608]
[1610369028895,0.1404,34818.0,34794.0,0.21091608]
[1610369029095,1.0,34843.0,34794.0,0.21091608]
[1610369029497,0.784,34843.0,34794.0,0.21091608]
[1610369029699,0.03,34862.0,34794.0,0.07459]
[1610369030797,0.0856,34861.0,34795.0,0.287]
[1610369030997,0.18251,34861.0,34795.0,0.287]
[1610369031798,0.09691,34861.0,34795.0,0.287]
[1610369032201,0.09691,34861.0,34796.0,0.00040545]
[1610369033203,0.03,34862.0,34796.0,0.00040545]
[1610369033801,0.13632608,34806.0,34796.0,0.00040545]
[1610369034001,0.13632608,34806.0,34795.0,0.287]
[1610369034200,0.13632608,34806.0,34797.0,0.00040549]
[1610369034601,0.13632608,34806.0,34795.0,0.287]
[1610369034602,0.13632608,34806.0,34796.0,0.00040551]
[1610369035002,0.06897,34843.0,34796.0,0.00040551]
[1610369035803,0.13632608,34797.0,34796.0,0.00040551]
[1610369037206,0.13632608,34797.0,34795.0,0.00040563]
[1610369037409,0.13632608,34797.0,34796.0,0.00040566]
[1610369037607,0.13632608,34797.0,34794.0,0.07459]
[1610369037806,0.13632608,34797.0,34762.0,3.5738]
[1610369038207,0.13632608,34797.0,34769.0,0.00040575]
[1610369038408,0.13632608,34797.0,34769.0,0.09487]
[1610369038808,0.13632608,34797.0,34770.0,0.00040575]
[1610369039008,0.13632608,34797.0,34770.0,0.03543014]
[1610369039710,0.13632608,34771.0,34770.0,0.03543014]
[1610369039920,0.10632608,34771.0,34770.0,0.03543014]
[1610369040311,4.0116,34798.0,34770.0,0.03543014]
[1610369041915,0.13632608,34771.0,34770.0,0.03543014]
[1610369042117,4.0116,34798.0,34770.0,0.03543014]
[1610369043919,0.13632608,34771.0,34770.0,0.03543014]
[1610369044322,4.0116,34798.0,34770.0,0.03543014]
[1610369044922,4.0106,34798.0,34770.0,0.03543014]
[1610369045922,0.13632608,34776.0,34770.0,0.03543014]
[1610369046326,4.0106,34798.0,34770.0,0.03543014]
[1610369047923,0.13632608,34785.0,34770.0,0.03543014]
[1610369048124,0.13632608,34785.0,34784.0,0.03503513]
[1610369048326,0.13632608,34785.0,34784.0,0.11845917]
[1610369048525,0.13632608,34785.0,34784.0,0.08302]
[1610369048725,0.13632608,34785.0,34784.0,0.11845797]
[1610369049125,4.0106,34798.0,34784.0,0.11845797]
[1610369049525,4.0106,34798.0,34785.0,0.03543734]
[1610369049927,0.0852,34826.0,34791.0,0.13632608]
[1610369050127,0.0852,34826.0,34791.0,0.23992608]
[1610369050328,0.0852,34826.0,34792.0,0.03543177]
[1610369050727,0.0871,34831.0,34792.0,0.03543177]
[1610369050927,0.0871,34831.0,34826.0,0.02]
[1610369051129,0.0871,34831.0,34811.0,0.07009]
[1610369051529,0.02,34816.0,34811.0,0.07009]
[1610369051729,0.02,34816.0,34811.0,0.00040394]
[1610369051929,0.13632608,34812.0,34811.0,0.00040394]
[1610369052128,0.13632608,34812.0,34811.0,0.00080783]
[1610369052329,0.13632608,34812.0,34811.0,0.00040389]
[1610369052931,0.13632608,34812.0,34792.0,0.03502619]
[1610369052932,0.13632608,34812.0,34792.0,0.03543006]
[1610369053330,0.13632608,34812.0,34811.0,0.00040389]
[1610369053529,0.13632608,34812.0,34809.0,0.10664]
[1610369053731,0.13632608,34812.0,34810.0,0.00040393]
[1610369055131,0.13632608,34812.0,34802.0,0.00040397]
[1610369055331,0.21173608,34812.0,34791.0,0.1036]
[1610369055534,0.21173608,34812.0,34803.0,0.00040407]
[1610369055934,0.21173608,34812.0,34726.0,0.286]
[1610369055935,0.13632608,34804.0,34785.0,0.00040407]
[1610369056131,0.13632608,34804.0,34756.0,0.13632608]
[1610369056331,0.13632608,34804.0,34786.0,0.00040409]
[1610369056532,0.13632608,34804.0,34786.0,0.08363409]
[1610369056731,0.13632608,34804.0,34786.0,0.08323]
[1610369056932,0.13632608,34804.0,34787.0,0.00040409]
[1610369057132,3.407,34803.0,34787.0,0.00040409]
[1610369057834,0.13632608,34788.0,34787.0,0.00040409]
[1610369059233,0.11632608,34788.0,34787.0,0.00040409]
[1610369059432,0.00532608,34788.0,34787.0,0.00040409]
[1610369059633,0.2835,34811.0,34787.0,0.00040409]
[1610369059834,0.2835,34811.0,34792.0,0.13632608]
[1610369060033,0.2835,34811.0,34787.0,0.00040409]
[1610369060034,3.8558,34816.0,34787.0,0.00040409]
[1610369060234,3.8558,34816.0,34793.0,0.00040401]
[1610369060435,3.8558,34816.0,34793.0,0.09595401]
[1610369060636,3.8558,34816.0,34793.0,0.09555]
[1610369060834,3.8558,34816.0,34794.0,0.00040401]
[1610369061033,0.0869,34815.0,34794.0,0.00040401]
[1610369061234,3.8558,34816.0,34794.0,0.00040401]
[1610369061837,0.13632608,34795.0,34794.0,0.00040401]
[1610369063238,0.13632608,34795.0,34794.0,0.03543765]
[1610369063438,3.8558,34816.0,34794.0,0.03543765]
[1610369063439,0.90835985,34813.0,34794.0,0.03543765]
[1610369063839,3.8558,34816.0,34800.0,0.13632608]
[1610369064238,3.8558,34816.0,34800.0,0.21597493]
[1610369064437,1.19235357,34815.0,34801.0,0.00040396]
[1610369064838,5.04772708,34816.0,34801.0,0.00040396]
[1610369065337,3.8558,34816.0,34801.0,0.00040396]
[1610369065741,1.19469028,34816.0,34801.0,0.00040396]
[1610369065937,1.19469028,34816.0,34815.0,0.13632608]
[1610369066138,1.19469028,34816.0,34811.0,0.09338]
[1610369066337,1.19469028,34816.0,34801.0,0.00040396]
[1610369066538,1.19554169,34815.0,34812.0,0.00040388]
[1610369066839,1.19554169,34815.0,34802.0,0.00040385]
[1610369067238,1.19554169,34815.0,34801.0,0.00040385]
[1610369067438,1.19437191,34816.0,34803.0,0.00040385]
[1610369067639,1.19437191,34816.0,34802.0,0.00040385]
[1610369067841,0.13632608,34803.0,34802.0,0.00040385]
[1610369068039,0.13632608,34803.0,34801.0,0.13632608]
[1610369068439,1.19616972,34811.0,34802.0,0.00040388]
[1610369069238,1.19616972,34811.0,34800.0,0.07964885]
[1610369069239,1.19616972,34811.0,34801.0,0.00040388]
[1610369069438,1.19616972,34811.0,34803.0,0.00040388]
[1610369069640,1.19612769,34806.0,34803.0,0.00040388]
[1610369069838,0.13632608,34804.0,34802.0,0.00040393]
[1610369070039,0.13632608,34804.0,34801.0,0.00040393]
[1610369070239,0.13632608,34804.0,34803.0,0.00040393]
[1610369070641,0.13632608,34804.0,34802.0,0.00040393]
[1610369070843,2.8414982,34804.0,34803.0,0.00040393]
[1610369071242,0.13632608,34804.0,34801.0,0.00040393]
[1610369071543,4.56944916,34804.0,34800.0,0.07964885]
[1610369071743,2.71909632,34802.0,34796.0,4.3211]
[1610369071945,0.13632608,34797.0,34796.0,4.3211]
[1610369072146,0.02632608,34797.0,34796.0,4.3211]
[1610369072345,0.02632608,34797.0,34796.0,4.32150387]
[1610369072545,1.20964088,34797.0,34796.0,4.32150387]
[1610369072746,1.52145221,34802.0,34796.0,4.32150387]
[1610369072946,1.52145221,34802.0,34796.0,4.3211]
[1610369073146,1.51944281,34801.0,34796.0,4.32150386]
[1610369073347,1.51944281,34801.0,34797.0,0.00040386]
[1610369073547,1.51926411,34799.0,34797.0,0.00040386]
[1610369073947,1.65346547,34798.0,34796.0,0.00040386]
[1610369074146,1.65346547,34798.0,34793.0,0.09555]
[1610369074147,1.65346547,34798.0,34793.0,0.09420278]
[1610369074348,1.51964635,34797.0,34779.0,4.2354]
[1610369074547,1.51964635,34797.0,34794.0,0.00040384]
[1610369074749,1.51964635,34797.0,34787.0,0.0004038]
[1610369074948,1.51993226,34794.0,34780.0,0.03543376]
[1610369075147,0.13632608,34798.0,34780.0,0.03543376]
[1610369075148,1.51783047,34796.0,34780.0,0.03543376]
[1610369075348,0.13632608,34798.0,34788.0,0.00040377]
[1610369075549,1.5184981,34797.0,34788.0,0.09413]
[1610369075748,1.5184981,34797.0,34789.0,0.00040377]
[1610369075951,1.51862336,34798.0,34796.0,0.13632608]
[1610369076149,1.72568484,34801.0,34796.0,0.24090608]
[1610369076351,1.51863826,34797.0,34796.0,0.24090608]
[1610369076750,1.51912075,34798.0,34796.0,0.24090608]
[1610369076949,1.51912075,34798.0,34796.0,0.24130986]
[1610369077150,1.51850057,34797.0,34796.0,0.24090608]
[1610369077549,1.51850057,34797.0,34796.0,0.10458]
[1610369077750,1.51850057,34797.0,34796.0,0.10498378]
[1610369077951,1.65482665,34797.0,34796.0,0.10498378]
[1610369078149,3.37337091,34797.0,34796.0,0.10498378]
[1610369080753,3.37337091,34797.0,34796.0,0.00040378]
[1610369080956,3.37337091,34797.0,34788.0,0.09413]
[1610369081154,3.37337091,34797.0,34780.0,0.0936]
[1610369081155,7.32399642,34797.0,34780.0,0.0936]
[1610369081354,3.22700981,34789.0,34770.0,4.822]
[1610369081554,3.22700981,34789.0,34781.0,0.00040365]
[1610369081757,1.71376195,34783.0,34781.0,0.11104365]
[1610369081953,0.13632608,34782.0,34781.0,0.11064]
[1610369082159,5.2367691,34782.0,34781.0,0.11023635]
[1610369082355,5.2367691,34782.0,34781.0,0.11064009]
[1610369082755,8.48100197,34782.0,34781.0,0.11064009]
[1610369083557,10.68787151,34782.0,34770.0,4.822]
[1610369083758,13.06372092,34782.0,34770.0,4.822]
[1610369083957,12.9270442,34782.0,34771.0,0.00039491]
[1610369084155,1.86735233,34772.0,34771.0,0.00039491]
[1610369084556,6.24507995,34772.0,34767.0,0.08023]
[1610369084956,6.24507995,34772.0,34768.0,0.00039489]
[1610369085156,1.69711392,34769.0,34768.0,0.00039489]
[1610369085357,4.37551996,34769.0,34768.0,0.00039489]
[1610369085958,4.51184604,34769.0,34768.0,0.00039489]
[1610369086160,4.51184604,34769.0,34745.0,0.13632608]
[1610369086560,4.51184604,34769.0,34746.0,0.00039486]
[1610369086761,1.18775325,34761.0,34746.0,0.00039486]
[1610369087465,1.18671484,34759.0,34746.0,0.00039486]
[1610369088062,2.03424723,34773.0,34746.0,0.00039486]
[1610369088063,0.13632608,34747.0,34746.0,0.00039486]
[1610369090068,0.13632608,34747.0,34723.0,0.13632608]
[1610369090266,1.31712782,34747.0,34746.0,1.6e-07]
[1610369090471,1.31712782,34747.0,34724.0,0.00039501]
[1610369090668,1.31712782,34747.0,34730.0,0.07161]
[1610369090866,1.17738943,34737.0,34730.0,0.07161]
[1610369091269,1.77940154,34731.0,34721.0,0.091]
[1610369092066,1.90937287,34722.0,34690.0,0.2918]
[1610369092465,3.07935871,34722.0,34691.0,0.00039334]
[1610369092666,0.83327709,34707.0,34691.0,0.07865334]
[1610369092867,0.83327648,34705.0,34691.0,0.07865334]
[1610369093267,0.83177325,34700.0,34692.0,0.00039342]
[1610369093870,0.83026029,34701.0,34692.0,0.00039342]
[1610369094071,0.83026029,34701.0,34678.0,0.09508]
[1610369094072,0.13632608,34693.0,34678.0,0.09508]
[1610369094268,0.21813608,34693.0,34678.0,0.09508]
[1610369094469,0.21813608,34693.0,34679.0,0.0003936]
[1610369094670,0.21813608,34693.0,34670.0,0.08978]
[1610369094671,0.00136261,34675.0,34670.0,0.08978]
[1610369094868,0.72644567,34691.0,34670.0,0.08978]
[1610369095270,0.13632608,34693.0,34670.0,0.08978]
[1610369096072,0.13632608,34671.0,34670.0,0.08978]
[1610369096271,5.29643277,34696.0,34670.0,0.08978]
[1610369096474,0.72591274,34695.0,34670.0,0.08978]
[1610369096872,0.7255315,34694.0,34670.0,0.08978]
[1610369097273,0.72397023,34690.0,34670.0,0.08978]
[1610369097674,0.72326039,34694.0,34670.0,0.08978]
[1610369098075,0.13632608,34671.0,34670.0,0.08978]
[1610369099678,0.13632608,34671.0,34659.0,4.0113]
[1610369100080,0.13632608,34660.0,34659.0,4.0113]
[1610369101882,0.10413,34679.0,34659.0,4.0113]
[1610369102082,0.13632608,34668.0,34665.0,0.13632608]
[1610369102282,0.10413,34679.0,34665.0,0.13632608]
[1610369102481,0.71069011,34688.0,34665.0,0.13632608]
[1610369102683,0.70970488,34693.0,34665.0,0.13632608]
[1610369103082,0.71141434,34703.0,34665.0,0.13632608]
[1610369103281,0.71141434,34703.0,34668.0,3.5709]
[1610369103482,0.90539235,34712.0,34668.0,3.65556]
[1610369103483,0.71201447,34712.0,34668.0,3.65556]
[1610369103883,0.71250664,34715.0,34668.0,3.65556]
[1610369104083,0.13632608,34703.0,34697.0,0.13632608]
[1610369104285,0.80964456,34718.0,34697.0,0.13632608]
[1610369104286,0.71297392,34718.0,34697.0,0.13632608]
[1610369104483,0.71297392,34718.0,34697.0,0.25033608]
[1610369104883,0.71246785,34720.0,34697.0,0.25033608]
[1610369105286,0.71274603,34722.0,34697.0,0.24857806]
[1610369105485,0.71236275,34724.0,34697.0,0.24857806]
[1610369105885,0.71399977,34732.0,34697.0,0.24857806]
[1610369106085,0.71399977,34732.0,34724.0,0.13632608]
[1610369106284,0.81134125,34736.0,34724.0,0.22232608]
[1610369106285,0.71499111,34736.0,34724.0,0.22232608]
[1610369106486,0.71499111,34736.0,34724.0,0.13632608]
[1610369106685,0.7162074,34744.0,34724.0,0.14467576]
[1610369107287,1.04824692,34753.0,34724.0,0.14467576]
[1610369107288,0.71854701,34751.0,34724.0,0.14467576]
[1610369107688,0.13632608,34753.0,34724.0,0.23057576]
[1610369107888,0.72085242,34757.0,34724.0,0.23057576]
[1610369108089,0.72185745,34759.0,34756.0,0.13632608]
[1610369108288,0.72185745,34759.0,34756.0,0.21402608]
[1610369108492,0.72345172,34766.0,34756.0,0.21402608]
[1610369108890,0.72500424,34772.0,34756.0,0.0384717]
[1610369109090,0.72587725,34774.0,34756.0,0.0384717]
[1610369109290,0.72653133,34776.0,34756.0,0.0384717]
[1610369109691,0.72692378,34777.0,34756.0,0.0384717]
[1610369110093,0.72749567,34781.0,34776.0,0.13632608]
[1610369110291,0.72749567,34781.0,34776.0,0.0936]
[1610369110492,0.13632608,34785.0,34776.0,0.0936]
[1610369110893,0.72926765,34782.0,34768.0,0.08137]
[1610369111091,0.13632608,34785.0,34768.0,0.08137]
[1610369111092,0.82812974,34784.0,34768.0,0.08137]
[1610369111491,0.8280294,34781.0,34768.0,0.08137]
[1610369111691,0.8280294,34781.0,34756.0,0.0384717]
[1610369112095,0.13632608,34764.0,34756.0,0.0384717]
[1610369113293,0.13632608,34764.0,34755.0,3.5588]
[1610369114194,0.13632608,34756.0,34755.0,3.5588]
[1610369115597,0.13632608,34756.0,34736.0,4.6068]
[1610369116200,0.13632608,34738.0,34736.0,4.6068]
[1610369116998,0.13632608,34738.0,34713.0,4.4402]
[1610369118198,0.10379,34743.0,34736.0,0.13632608]
[1610369118398,0.10379,34743.0,34736.0,0.23393608]
[1610369118798,0.03,34756.0,34736.0,0.23393608]
[1610369119702,0.03,34756.0,34736.0,0.09761]
[1610369120099,0.13632608,34743.0,34736.0,0.09761]
[1610369120499,0.03,34756.0,34736.0,0.09761]
[1610369122104,0.03,34756.0,34751.0,0.13632608]
[1610369122306,0.03,34756.0,34751.0,0.07035]
[1610369122904,0.03,34756.0,34736.0,0.09761]
[1610369123307,0.03,34756.0,34730.0,4.2093]
[1610369123905,0.72858411,34752.0,34730.0,4.2093]
[1610369124104,0.13632608,34731.0,34730.0,4.2093]
[1610369124909,0.13632608,34731.0,34730.0,4.1796]
[1610369125105,0.13632608,34731.0,34695.0,0.2874]
[1610369125506,0.13632608,34731.0,34696.0,0.00039501]
[1610369125907,0.13632608,34731.0,34696.0,0.07842501]
[1610369126107,0.8150444,34733.0,34720.0,0.13632608]
[1610369126307,0.08847,34733.0,34714.0,0.08372]
[1610369127109,0.08847,34733.0,34714.0,0.08196371]
[1610369127709,0.72887658,34732.0,34714.0,0.08196371]
[1610369128108,0.13632608,34715.0,34714.0,0.08196371]
[1610369128409,0.13632608,34715.0,34699.0,0.13632608]
[1610369128808,0.13632608,34715.0,34714.0,0.00039502]
[1610369129007,0.13632608,34715.0,34699.0,0.13632608]
[1610369129008,0.13632608,34715.0,34700.0,0.00039502]
[1610369129208,0.13632608,34715.0,34699.0,0.13632608]
[1610369129608,0.13632608,34715.0,34701.0,0.00039506]
[1610369129809,0.13632608,34715.0,34700.0,0.00039506]
[1610369130012,0.13632608,34715.0,34702.0,0.00039508]
[1610369130210,0.13632608,34703.0,34702.0,0.00039508]
[1610369130510,0.13632608,34703.0,34701.0,0.00039505]
[1610369130711,0.13632608,34703.0,34700.0,0.00039507]
[1610369130910,0.22900608,34703.0,34691.0,4.1513]
[1610369131110,0.22900608,34703.0,34692.0,0.00039511]
[1610369131314,0.22900608,34703.0,34691.0,4.1513]
[1610369131512,0.22900608,34703.0,34667.0,3.831]
[1610369131913,0.22900608,34703.0,34668.0,0.00039528]
[1610369132312,0.13632608,34669.0,34668.0,0.00039528]
[1610369133115,0.13632608,34669.0,34667.0,3.831]
[1610369134114,0.13632608,34669.0,34668.0,0.13632608]
[1610369134315,0.11366,34675.0,34668.0,0.13632608]
[1610369134716,0.11366,34675.0,34667.0,3.831]
[1610369136118,0.13632608,34668.0,34667.0,3.831]
[1610369136522,0.23132608,34668.0,34667.0,3.831]
[1610369136718,0.23132608,34668.0,34645.0,0.13632608]
[1610369137132,0.095,34668.0,34646.0,0.00039565]
[1610369137317,0.11366,34675.0,34646.0,0.00039565]
[1610369137920,0.10253,34682.0,34646.0,0.00039565]
[1610369138118,0.83249853,34694.0,34646.0,0.00039565]
[1610369138318,0.13632608,34672.0,34656.0,0.13632608]
[1610369138518,0.13632608,34672.0,34646.0,0.00039565]